fUSD/lending_fUSD_20240216
["ID","MTS","AMOUNT","RATE_DAILY","PERIOD"]
[314195438,1708062643561,-626.51,0.00041643,30]
[314195439,1708062643570,-500.0,0.00041643,30]
[314195440,1708062643579,-393.59208745,0.00041643,30]
[314195441,1708062643588,-21834.77121759,0.00041644,3]
[314195442,1708062643597,-915.62,0.00041644,2]
[314195443,1708062643606,-915.62,0.00041644,2]
[314195444,1708062643615,-915.62,0.00041644,2]
[314195445,1708062643623,-405.38,0.00041644,2]
[314195446,1708062643633,-915.62,0.00041644,2]
[314195447,1708062643642,-405.38,0.00041644,2]
[314195448,1708062643651,-405.38,0.00041644,2]
[314195449,1708062643661,-915.62,0.00041644,2]
[314195450,1708062643670,-405.38,0.00041644,2]
[314195451,1708062643680,-915.62,0.00041644,2]
[314195452,1708062643690,-405.38,0.00041644,2]
[314195453,1708062643700,-915.62,0.00041644,2]
[314195454,1708062643710,-405.38,0.00041644,2]
[314195455,1708062643719,-405.38,0.00041644,2]
[314195456,1708062643727,-405.38,0.00041644,2]
[314195457,1708062643736,-915.62,0.00041644,2]
[314195458,1708062643745,-915.62,0.00041644,2]
[314195459,1708062643755,-405.38,0.00041644,2]
[314195460,1708062643765,-405.38,0.00041644,2]
[314195461,1708062643774,-176.05,0.00041645,60]
[314195462,1708062643783,-494.055,0.00041647,7]
[314195463,1708062643792,-58000.0,0.00041648,5]
[314195464,1708062643802,-150.0,0.0004165,2]
[314195465,1708062643812,-150.0,0.00041652,2]
[314195466,1708062643822,-500.0,0.00041667,2]
[314195467,1708062643832,-150.0,0.00041678,2]
[314195468,1708062643841,-150.0,0.00041685,2]
[314195469,1708062643850,-150.0,0.00041689,60]
[314195470,1708062643860,-315.56151884,0.00041691,2]
[314195471,1708062643869,-154.0,0.00041692,7]
[314195472,1708062643883,-222.99742898,0.00041693,2]
[314195473,1708062643893,-3623.0,0.000417,87]
[314195474,1708062643902,-800.0,0.00041719,20]
[314195475,1708062643912,-300.0,0.00041722,2]
[314195476,1708062643922,-200.0,0.00041724,20]
[314195477,1708062643932,-800.0,0.00041726,20]
[314195478,1708062643943,-553.21,0.00041728,2]
[314195479,1708062643953,-200.0,0.00041729,15]
[314195480,1708062643963,-200.0,0.00041729,20]
[314195481,1708062643974,-500.0,0.00041729,20]
[314195482,1708062643982,-800.0,0.00041732,20]
[314195483,1708062643992,-200.0,0.00041734,20]
[314195484,1708062644001,-200.0,0.00041739,15]
[314195485,1708062644011,-800.0,0.00041739,20]
[314195486,1708062644020,-200.0,0.00041739,20]
[314195487,1708062644029,-500.0,0.00041739,20]
[314195488,1708062644038,-200.0,0.00041744,20]
[314195489,1708062644047,-800.0,0.00041746,20]
[314195490,1708062644057,-200.0,0.00041749,15]
[314195491,1708062644066,-200.0,0.00041749,20]
[314195492,1708062644075,-500.0,0.00041749,20]
[314195493,1708062644084,-151.2636563,0.00041751,2]
[314195494,1708062644093,-800.0,0.00041753,20]
[314195495,1708062644102,-200.0,0.00041754,20]
[314195496,1708062644111,-200.0,0.00041759,15]
[314195497,1708062644120,-800.0,0.00041759,20]
[314195498,1708062644129,-200.0,0.00041759,20]
[314195499,1708062644137,-200.0,0.00041759,20]
[314195500,1708062644147,-500.0,0.00041759,20]
[314195501,1708062644155,-150.0,0.00041777,2]
[314195502,1708062644166,-500.0,0.00041781,2]
[314195503,1708062644175,-150.0,0.00041783,2]
[314195504,1708062644184,-151.66089329,0.00041784,2]
[314195505,1708062644193,-40879.2421682,0.0004179,8]
[314195506,1708062645700,-500.0,0.00041095,30]
[314195507,1708062645709,-227.14310928,0.00041369,30]
[314195508,1708062645718,-1070.886364,0.00041482,3]
[314195509,1708062645730,-3929.113636,0.00041482,3]
[314195510,1708062645740,-32.97678565,0.00041516,4]
[314195511,1708062645761,-1433.49229833,0.00041516,4]
[314195512,1708062645773,-255.94180885,0.00041516,4]
[314195513,1708062645785,-326.23665962,0.00041516,4]
[314195514,1708062645794,-1006.36852265,0.00041516,4]
[314195515,1708062645803,-48605.0810946,0.0004179,8]
[314195516,1708062645812,-151.021678,0.00041798,27]
[314195517,1708062645823,-666.0,0.000418,15]
[314195518,1708062645832,-777.0,0.000418,7]
[314195519,1708062645842,-614.29204513,0.000418,30]
[314195520,1708062645855,-987.27566044,0.000418,30]
[314195521,1708062645867,-257.05021342,0.000418,30]
[314195522,1708062670008,155911.48637616,0.00023,2]
[314195523,1708062670048,10000.0,0.00023,2]
[314195524,1708062670078,81393.60836451,0.00023,2]
[314195525,1708062670105,248544.61066293,0.00023,2]
[314195528,1708062829956,11455.38933707,0.00023,2]
[314195529,1708062829985,619173.53352709,0.00023,2]
[314195530,1708062865916,5743.87358302,0.00025,30]
[314195531,1708062968339,3880.0,0.000303,120]
[314195538,1708063831712,-376.10423652,0.00024988,2]
[314195539,1708063831721,-596.83842681,0.00024989,2]
[314195540,1708063831769,-58.55907357,0.00024989,2]
[314195541,1708063831778,-441.44092643,0.00024992,2]
[314195542,1708063831791,-625.9044484,0.00024992,2]
[314195543,1708063831803,-1067.34537483,0.00024992,2]
[314195544,1708063831812,-1067.34537483,0.00024992,2]
[314195545,1708063831822,-1067.34537483,0.00024992,2]
[314195546,1708063831831,-1067.34537483,0.00024992,2]
[314195547,1708063831840,-1067.34537483,0.00024992,2]
[314195548,1708063831849,-1250.0,0.00025,3]
[314195549,1708063831858,-7243.897093,0.00034815,2]
[314195550,1708063831868,-238.96,0.0003499,10]
[314195551,1708063831877,-199.13,0.0003499,10]
[314195552,1708063831886,-23574.59894927,0.00035,4]
[314195553,1708063831895,-15397.77062595,0.00035,2]
[314195554,1708063831907,-261.15578167,0.00035,2]
[314195555,1708063831918,-7802.4,0.00035,2]
[314195556,1708063831930,-79549.27240329,0.00035,2]
[314195557,1708063831946,-562.4996314,0.00035,2]
[314195558,1708063831992,-350.0,0.00035,2]
[314195572,1708063837820,-655.39750038,0.00024987,2]
[314195573,1708063837830,-70938.5550649,0.00035,2]
[314195574,1708063837840,-5593.6110337,0.00035046,2]
[314195575,1708063837849,-447.23016327,0.00035046,2]
[314195576,1708063837859,-19412.70663679,0.00035146,2]
[314195577,1708063837868,-454.8472109,0.00035157,10]
[314195578,1708063837877,-499.99,0.00035157,2]
[314195579,1708063837887,-259.94,0.00035258,2]
[314195580,1708063837896,-172.32,0.00036252,2]
[314195581,1708063837905,-310.22,0.00036278,2]
[314195582,1708063837914,-178.33,0.00036365,2]
[314195583,1708063837923,-5593.61103368,0.00036376,2]
[314195584,1708063837932,-447.23016319,0.00036376,2]
[314195585,1708063837941,-664.5,0.00036394,2]
[314195586,1708063837950,-250.0,0.0003643,111]
[314195587,1708063837959,-223.93,0.00036453,2]
[314195588,1708063837968,-2705.0,0.00036522,2]
[314195589,1708063837977,-796.86,0.00036821,2]
[314195590,1708063837986,-152.1,0.00037088,2]
[314195591,1708063837995,-2000.0,0.00037167,2]
[314195592,1708063838005,-156.7621,0.00037181,2]
[314195593,1708063838014,-254.75,0.00037183,2]
[314195594,1708063838023,-158.3,0.00037196,2]
[314195595,1708063838032,-254.75,0.00037285,2]
[314195596,1708063838041,-254.75,0.00037387,2]
[314195597,1708063838050,-1094.86158112,0.00037398,4]
[314195598,1708063838059,-27075.9991937,0.000374,5]
[314195599,1708063838067,-254.75,0.00037489,2]
[314195600,1708063838076,-259.94,0.00037522,2]
[314195601,1708063838085,-254.75,0.00037591,2]
[314195602,1708063838094,-254.75,0.00037693,2]
[314195603,1708063838103,-335.5,0.00037694,2]
[314195604,1708063838112,-5593.61103368,0.00037706,2]
[314195605,1708063838121,-447.23016319,0.00037706,2]
[314195606,1708063838130,-109369.905,0.00037742,2]
[314195607,1708063838139,-254.75,0.00037795,2]
[314195608,1708063838149,-152.1,0.00037829,2]
[314195609,1708063838158,-1050.28,0.00037843,2]
[314195610,1708063838166,-254.75,0.00037897,2]
[314195611,1708063838175,-254.75,0.00037999,2]
[314195613,1708063838184,-151.0,0.00038089,4]
[314195614,1708063838192,-223.93,0.00038097,2]
[314195615,1708063838204,-254.75,0.00038101,2]
[314195616,1708063838213,-254.75,0.00038203,2]
[314195617,1708063838222,-5540.12296572,0.00038261,2]
[314195618,1708063838235,-14818.44133428,0.00038261,2]
[314195619,1708063838245,-254.75,0.00038305,2]
[314195620,1708063838254,-155.31,0.00038335,2]
[314195621,1708063838263,-965.79,0.00038356,15]
[314195622,1708063838272,-155.04,0.00038356,2]
[314195623,1708063838282,-1000.0,0.00038367,10]
[314195624,1708063838294,-1000.0,0.00038367,10]
[314195625,1708063838303,-150.0,0.000384,2]
[314195626,1708063838312,-254.75,0.00038407,2]
[314195627,1708063838321,-1147.32567386,0.00038412,7]
[314195628,1708063838330,-210.91554565,0.00038439,7]
[314195629,1708063838339,-254.75,0.00038509,2]
[314195630,1708063838349,-152.1,0.00038571,2]
[314195631,1708063838358,-254.75,0.00038611,2]
[314195632,1708063838367,-206.0,0.00038684,2]
[314195633,1708063838376,-254.75,0.00038713,2]
[314195634,1708063838385,-254.75,0.00038815,2]
[314195635,1708063838394,-173.96,0.00038853,2]
[314195636,1708063838404,-151.0,0.00038866,2]
[314195637,1708063838413,-254.75,0.00038917,2]
[314195638,1708063838422,-254.75,0.00039019,2]
[314195639,1708063838432,-167.25,0.00039021,2]
[314195640,1708063838441,-5593.61103368,0.00039036,2]
[314195641,1708063838450,-447.23016319,0.00039036,2]
[314195642,1708063838460,-254.75,0.00039121,2]
[314195643,1708063838469,-479.01122374,0.000393,2]
[314195644,1708063838478,-152.1,0.00039313,2]
[314195645,1708063838488,-1767.53586764,0.0003946,2]
[314195646,1708063838497,-3526.1169,0.0003946,2]
[314195647,1708063838506,-169.58196615,0.00039464,2]
[314195648,1708063838515,-185.84276102,0.00039464,14]
[314195649,1708063838524,-362.70779352,0.00039478,9]
[314195650,1708063838535,-5000.0,0.0003948,7]
[314195651,1708063838544,-3087.0,0.00039481,2]
[314195652,1708063838553,-375.90637161,0.00039554,2]
[314195653,1708063838563,-688.70978124,0.00039564,30]
[314195654,1708063838572,-323.36379131,0.00039564,90]
[314195655,1708063838581,-767.34730536,0.00039564,2]
[314195656,1708063838590,-1057.83339662,0.00039564,3]
[314195657,1708063838599,-202.80738727,0.00039564,120]
[314195658,1708063838609,-1508.59599246,0.00039564,60]
[314195659,1708063838618,-19813.70341635,0.00039564,2]
[314195660,1708063838627,-310.79020907,0.00039564,120]
[314195661,1708063838645,-152.92544454,0.00039564,2]
[314195662,1708063838656,-647.12865825,0.00039564,30]
[314195663,1708063838665,-1275.7441856,0.00039564,2]
[314195664,1708063838675,-2634.04514404,0.00039564,2]
[314195665,1708063838684,-155.29598778,0.00039564,2]
[314195666,1708063838694,-1676.76898423,0.00039564,30]
[314195667,1708063838703,-154.09038755,0.00039564,31]
[314195668,1708063838713,-155.34090579,0.00039564,2]
[314195669,1708063838722,-674.31378256,0.00039564,2]
[314195670,1708063838731,-204.82545901,0.00039564,90]
[314195671,1708063838740,-496.73292102,0.00039564,15]
[314195672,1708063838750,-2219.49305048,0.00039564,4]
[314195673,1708063838759,-153.3577987,0.00039564,30]
[314195674,1708063838768,-319.48620703,0.00039564,120]
[314195675,1708063838777,-1224.56963423,0.00039564,2]
[314195676,1708063838787,-281.10631617,0.00039564,120]
[314195677,1708063838798,-10408.84717585,0.00039564,120]
[314195678,1708063838807,-14520.05596386,0.00039564,4]
[314195679,1708063838817,-216.28756478,0.00039564,2]
[314195680,1708063838826,-219.90710713,0.00039564,120]
[314195681,1708063838835,-8112.85376153,0.00039564,10]
[314195682,1708063838845,-1012.68888694,0.00039564,2]
[314195683,1708063838854,-1178.86423148,0.00039564,120]
[314195684,1708063838863,-742.91222154,0.00039564,120]
[314195685,1708063838872,-162.06747569,0.00039564,30]
[314195686,1708063838882,-603.98328026,0.00039564,60]
[314195687,1708063838891,-155.44208196,0.00039564,2]
[314195688,1708063838900,-20008.10601824,0.00039564,2]
[314195689,1708063838909,-286.68197313,0.00039564,120]
[314195690,1708063838919,-1105.20309287,0.00039564,120]
[314195691,1708063838928,-177.60946344,0.00039564,30]
[314195692,1708063838937,-151.47013554,0.00039564,30]
[314195693,1708063838946,-243.42012289,0.00039564,30]
[314195694,1708063838955,-629.27915847,0.00039564,120]
[314195695,1708063838964,-52756.6915453,0.00039564,5]
[314195696,1708063838973,-155.71210622,0.00039564,30]
[314195697,1708063838982,-1923.31009777,0.00039564,120]
[314195698,1708063838996,-380.21994964,0.00039564,120]
[314195699,1708063841011,-832.50653732,0.00035157,10]
[314195700,1708063841021,-165.94,0.00039554,10]
[314195701,1708063841033,-5527.82189863,0.00039564,120]
[314195702,1708063841069,-537.82810463,0.00039564,120]
[314195703,1708063841128,-282.52698767,0.00039564,120]
[314195704,1708063841199,-469.30961175,0.00039564,120]
[314195705,1708063841213,-920.77149007,0.00039564,120]
[314195706,1708063841225,-321.1046262,0.00039564,120]
[314195707,1708063841302,-7508.4788609,0.00039564,120]
[314195716,1708063842649,-353.659,0.00039564,120]
[314195717,1708063842705,-265.6000002,0.00039564,120]
[314195718,1708063842763,-1852.72540328,0.00039564,120]
[314195719,1708063842776,-1181.10951891,0.00039564,120]
[314195720,1708063843851,-152.25040576,0.00024892,2]
[314195721,1708063843861,-850.41308854,0.00039564,120]
[314195726,1708063845673,-5093.21381547,0.00035,4]
[314195727,1708063845728,-1574.18364801,0.00035,4]
[314195728,1708063845785,-1959.99715233,0.00035,4]
[314195729,1708063845797,-1075.0,0.00035,4]
[314195730,1708063845842,-884.21118007,0.00035,4]
[314195731,1708063845854,-500.62895699,0.00035,4]
[314195732,1708063845866,-466.70474391,0.00035,4]
[314195733,1708063845913,-12020.65945249,0.00035,4]
[314195734,1708063845922,-18433.50735965,0.00039564,120]
[314195735,1708063845961,-625.15762086,0.00039564,120]
[314195736,1708063845972,-328.53934177,0.00039564,120]
[314195737,1708063845984,-403.53386833,0.00039564,120]
[314195740,1708064166331,178.01,0.00017445,2]
[314195741,1708064579678,-880.57245732,0.00035645,4]
[314195742,1708064579697,-795.78278884,0.00035646,2]
[314195743,1708064579716,-1434.05328672,0.00035647,4]
[314195744,1708064579735,-505.32239072,0.00035647,4]
[314195745,1708064579754,-1861.15656889,0.00035648,4]
[314195746,1708064579773,-14523.11250751,0.00035648,4]
[314195747,1708064645280,-1861.15656889,0.00033864,4]
[314195748,1708064645300,-150.0,0.00035644,2]
[314195749,1708064645324,-17988.84343111,0.00035645,4]
[314195750,1708064658227,-505.32239072,0.00033862,4]
[314195751,1708064658248,-880.57245732,0.00033863,4]
[314195752,1708064658267,-1434.05328672,0.00033863,4]
[314195753,1708064658287,-1856.66352608,0.00035644,4]
[314195754,1708064658306,-5585.75551816,0.00035645,4]
[314195755,1708064658325,-9737.632821,0.00035646,4]
[314195756,1708064666566,-1234.47854528,0.00035566,4]
[314195757,1708064666585,-795.78278884,0.00035643,2]
[314195758,1708064666605,-17969.73866588,0.00035646,4]
[314195759,1708064674857,-20000.0,0.00035646,4]
[314195760,1708064682514,-20000.0,0.00035646,4]
[314195766,1708064699510,-204.20811932,0.00035649,4]
[314195767,1708064699533,-266.36,0.00035943,2]
[314195768,1708064699560,-152.74026573,0.00037339,2]
[314195769,1708064699580,-545.88489878,0.00037341,2]
[314195770,1708064699603,-829.75,0.0003743,10]
[314195771,1708064699622,-557.04795219,0.00037437,2]
[314195772,1708064699640,-1445.98926508,0.00037438,4]
[314195773,1708064699658,-1237.77568405,0.00037438,4]
[314195774,1708064699677,-14760.24381485,0.00037438,4]
[314195775,1708064707209,-268.33809795,0.00037341,2]
[314195776,1708064707229,-19731.66190205,0.00037438,4]
[314195777,1708064716496,-20000.0,0.00037438,4]
[314195778,1708064724003,-19795.52962113,0.00037438,4]
[314195779,1708064724023,-204.47037887,0.00037438,4]
[314195780,1708064740253,-505.32239072,0.00037437,4]
[314195781,1708064740274,-827.00935784,0.00037438,4]
[314195782,1708064740295,-18667.66825144,0.00037438,4]
[314195783,1708064747471,-20000.0,0.00037438,4]
[314195784,1708064754418,-20000.0,0.00037438,4]
[314195796,1708065031823,-360.65131944,0.00035154,4]
[314195797,1708065031837,-144.67107128,0.00035154,4]
[314195798,1708065031847,-722.0358157,0.00035155,4]
[314195799,1708065031856,-1497.66509933,0.00035157,10]
[314195800,1708065031866,-275.3,0.00035671,2]
[314195801,1708065031875,-376.61055274,0.00037,2]
[314195802,1708065031884,-2500.0,0.0003734,2]
[314195803,1708065031894,-23574.59894927,0.0003734,4]
[314195804,1708065031903,-3356.16662028,0.00037341,2]
[314195805,1708065031913,-549.34,0.0003743,10]
[314195806,1708065031922,-457.78,0.0003743,10]
[314195807,1708065031932,-155.0,0.00037438,4]
[314195808,1708065031942,-1554.05478886,0.00037438,2]
[314195809,1708065031952,-100110.52429233,0.00037438,4]
[314195810,1708065031961,-3072.384592,0.00037438,4]
[314195811,1708065031971,-803.94536383,0.00037439,4]
[314195812,1708065031980,-174861.65350721,0.0003744,2]
[314195813,1708065031990,-363.92326586,0.00037441,2]
[314195814,1708065032000,-314.61,0.00037452,2]
[314195815,1708065032010,-2308.21960774,0.00037541,4]
[314195816,1708065032020,-169.51,0.00037542,2]
[314195817,1708065032031,-158.3,0.00037573,2]
[314195818,1708065032040,-1000.0,0.00037583,2]
[314195819,1708065032050,-351.57,0.00037594,2]
[314195820,1708065032059,-22109.18262428,0.00037642,2]
[314195821,1708065033282,-460.21237572,0.00037642,2]
[314195822,1708065033291,-177.26,0.00037668,2]
[314195823,1708065033300,-250.0,0.00037755,111]
[314195824,1708065033309,-23900.0,0.00037805,2]
[314195825,1708065033318,-499.99,0.00037805,2]
[314195826,1708065033328,-1267.66,0.00037814,2]
[314195827,1708065033337,-289.45,0.00037814,2]
[314195828,1708065033346,-248.36,0.00037815,2]
[314195829,1708065033355,-220.75,0.00037909,2]
[314195830,1708065033364,-275.3,0.00037935,2]
[314195831,1708065033374,-10000.0,0.00038,10]
[314195832,1708065033383,-289.45,0.00038013,2]
[314195833,1708065033392,-848.0,0.00038045,2]
[314195834,1708065033401,-244.0,0.00038045,2]
[314195835,1708065033411,-162.0,0.00038126,2]
[314195836,1708065033420,-1111.04,0.00038154,2]
[314195837,1708065033429,-196.09,0.00038168,2]
[314195838,1708065033438,-289.45,0.00038212,2]
[314195839,1708065033448,-1000.0,0.00038234,10]
[314195840,1708065033457,-256.2399676,0.00038244,7]
[314195841,1708065033466,-280.41846103,0.00038244,7]
[314195842,1708065033475,-214.01441916,0.00038244,7]
[314195843,1708065033484,-1000.0,0.00038244,10]
[314195844,1708065033494,-219.4439737,0.00038249,7]
[314195845,1708065033503,-167.41074325,0.00038249,7]
[314195846,1708065033512,-160.3217561,0.0003826,7]
[314195847,1708065033522,-244.25195609,0.00038265,7]
[314195848,1708065033531,-196.09,0.00038272,2]
[314195849,1708065033540,-875.23,0.00038283,2]
[314195850,1708065033550,-1932.0,0.000383,3]
[314195851,1708065033561,-153.36,0.00038356,2]
[314195852,1708065033571,-885.3,0.00038356,15]
[314195853,1708065033580,-196.09,0.00038377,2]
[314195855,1708065033589,-289.45,0.00038411,2]
[314195857,1708065033598,-3356.1666202,0.00038416,2]
[314195859,1708065033608,-363.92326584,0.00038435,2]
[314195862,1708065033617,-196.09,0.00038482,2]
[314195865,1708065033627,-196.09,0.00038586,2]
[314195867,1708065033638,-150.0,0.000386,2]
[314195869,1708065033647,-289.45,0.0003861,2]
[314195870,1708065033656,-196.09,0.00038691,2]
[314195872,1708065033665,-196.09,0.00038796,2]
[314195874,1708065033674,-289.45,0.00038809,2]
[314195875,1708065033684,-196.09,0.000389,2]
[314195876,1708065033693,-1170.02714321,0.00038991,2]
[314195877,1708065033702,-196.09,0.00039005,2]
[314195878,1708065033712,-289.45,0.00039008,2]
[314195879,1708065033721,-1500.0,0.0003906,2]
[314195880,1708065033731,-196.09,0.0003911,2]
[314195881,1708065033740,-285.0,0.0003911,2]
[314195882,1708065033749,-3000.0,0.0003917,2]
[314195883,1708065033759,-1170.02714321,0.00039187,2]
[314195884,1708065033769,-1000.0,0.000392,2]
[314195885,1708065033779,-289.45,0.00039207,2]
[314195886,1708065033788,-196.09,0.00039214,2]
[314195887,1708065033797,-206.0,0.00039236,2]
[314195888,1708065033806,-206.0,0.00039236,2]
[314195889,1708065033816,-155.0,0.00039237,7]
[314195890,1708065033826,-150.0,0.00039278,2]
[314195891,1708065033835,-1500.0,0.000393,2]
[314195892,1708065033845,-196.09,0.00039319,2]
[314195893,1708065033855,-182.0,0.00039353,2]
[314195894,1708065033864,-155.0,0.00039374,7]
[314195895,1708065033874,-2308.21960774,0.00039378,4]
[314195896,1708065033883,-436.29763756,0.0003938,9]
[314195897,1708065033892,-289.45,0.00039406,2]
[314195898,1708065033901,-385.01723988,0.00039411,11]
[314195899,1708065033910,-196.09,0.00039424,2]
[314195900,1708065033919,-363.92326584,0.00039428,2]
[314195901,1708065033928,-248.36,0.00039459,2]
[314195902,1708065033937,-18446.0,0.00039459,2]
[314195903,1708065033946,-5000.0,0.0003948,7]
[314195904,1708065033955,-3356.1666202,0.00039491,2]
[314195905,1708065033964,-4882.20805108,0.000395,3]
[314195906,1708065033982,-474.01370317,0.000395,3]
[314195907,1708065034001,-3767.4112302,0.000395,3]
[314195908,1708065034012,-299.42368159,0.000395,3]
[314195909,1708065034028,-954.01451178,0.000395,3]
[314195910,1708065034052,-381.49,0.0003743,10]
[314195911,1708065034062,-3418.51,0.000395,3]
[314195912,1708065037865,-206.0,0.00039236,2]
[314195913,1708065037875,-2057.94626475,0.000395,3]
[314195914,1708065037888,-64176.60137113,0.000395,3]
[314195915,1708065037898,-155.0,0.00039511,7]
[314195916,1708065037907,-22030.871263,0.00039524,2]
[314195917,1708065037916,-196.09,0.00039528,2]
[314195918,1708065037925,-274.69961544,0.00039562,4]
[314195919,1708065037935,-313.27889739,0.00039563,4]
[314195920,1708065037944,-471.18355452,0.00039564,4]
[314195921,1708065037954,-2000.0,0.00039564,2]
[314195922,1708065037963,-200.0,0.00039564,2]
[314195923,1708065037972,-289.45,0.00039605,2]
[314195924,1708065037981,-196.09,0.00039633,2]
[314195925,1708065037990,-155.0,0.00039648,7]
[314195926,1708065037999,-1905.96874626,0.00039662,120]
[314195927,1708065038011,-39065.0933008,0.00039662,120]
[314195928,1708065038023,-40698.64303029,0.00039662,2]
[314195929,1708065038035,-10066.5057525,0.00039662,2]
[314195930,1708065038043,-205.39995957,0.00039662,120]
[314195931,1708065038052,-354.03583145,0.00039662,120]
[314195932,1708065038061,-836.47769466,0.00039662,120]
[314195933,1708065038070,-422.89775243,0.00039662,2]
[314195934,1708065038079,-4049.22896703,0.00039662,120]
[314195935,1708065038088,-756.0,0.00039662,120]
[314195936,1708065038097,-197.19793628,0.00039662,30]
[314195937,1708065038106,-170.916223,0.00039662,2]
[314195938,1708065038116,-507.42611877,0.00039662,120]
[314195939,1708065038125,-7067.0,0.00039662,10]
[314195940,1708065038136,-200.98,0.00039662,120]
[314195941,1708065038145,-405.38,0.00039726,2]
[314195942,1708065038154,-405.38,0.00039726,2]
[314195943,1708065038163,-317.82,0.00039726,2]
[314195944,1708065038172,-196.09,0.00039738,2]
[314195945,1708065038182,-150.0,0.00039778,2]
[314195946,1708065038191,-179.40063518,0.0003978,13]
[314195947,1708065038201,-543.02156664,0.0003978,2]
[314195948,1708065038211,-166.60841824,0.0003978,2]
[314195949,1708065038220,-1679.15907422,0.00039782,2]
[314195950,1708065038230,-152.0,0.00039785,7]
[314195951,1708065038239,-152.36,0.000398,3]
[314195952,1708065038249,-152.36,0.000398,3]
[314195953,1708065038260,-152.36,0.000398,3]
[314195954,1708065038269,-152.36,0.000398,3]
[314195955,1708065038279,-152.36,0.000398,3]
[314195956,1708065038289,-152.36,0.000398,3]
[314195957,1708065038302,-152.36,0.000398,3]
[314195958,1708065038312,-289.45,0.00039804,2]
[314195959,1708065038321,-196.09,0.00039842,2]
[314195960,1708065038331,-1170.02714323,0.00039848,2]
[314195961,1708065038341,-1330.1380825,0.00039849,2]
[314195962,1708065038351,-300.82627676,0.0003986,2]
[314195963,1708065038361,-150352.850705,0.0003987,5]
[314195964,1708065038371,-150.1686556,0.0003988,3]
[314195965,1708065038381,-236031.01208322,0.0003988,2]
[314195966,1708065038390,-151.0,0.0003988,7]
[314195967,1708065038400,-151.0,0.0003988,7]
[314195968,1708065038409,-151.0,0.0003988,7]
[314195969,1708065038418,-224.131239,0.0003988,7]
[314195970,1708065038428,-204.395707,0.0003988,7]
[314195971,1708065038437,-151.0,0.0003988,7]
[314195972,1708065038446,-286.22743,0.0003988,7]
[314195973,1708065038455,-286.22743,0.0003988,7]
[314195974,1708065038464,-151.0,0.0003988,7]
[314195975,1708065038473,-151.0,0.0003988,7]
[314195976,1708065038483,-224.420115,0.0003988,7]
[314195977,1708065038492,-151.0,0.0003988,7]
[314195978,1708065038501,-151.0,0.0003988,7]
[314195979,1708065038510,-151.0,0.0003988,7]
[314195980,1708065038520,-190.441522,0.0003988,7]
[314195981,1708065038529,-151.0,0.0003988,7]
[314195982,1708065038538,-151.0,0.0003988,7]
[314195983,1708065038547,-151.0,0.0003988,7]
[314195984,1708065038560,-151.0,0.0003988,7]
[314195985,1708065038569,-151.0,0.0003988,7]
[314195986,1708065038578,-155.643189,0.0003988,7]
[314195987,1708065038587,-151.0,0.0003988,7]
[314195988,1708065038602,-177.610138,0.0003988,7]
[314195989,1708065038611,-1773.04,0.00039882,2]
[314195990,1708065038621,-1000.0,0.000399,120]
[314195991,1708065038632,-1434.54374936,0.000399,5]
[314195992,1708065038642,-154.6833297,0.000399,6]
[314195993,1708065038652,-152.0,0.00039922,7]
[314195994,1708065038662,-150.0,0.00039934,2]
[314195995,1708065038671,-196.09,0.00039947,2]
[314195996,1708065038681,-2000.0,0.0003996,2]
[314195997,1708065038691,-200.0,0.0003996,2]
[314195998,1708065038700,-150.0,0.00039988,2]
[314195999,1708065038709,-32127.86958034,0.0003999,3]
[314196000,1708065038719,-151.0,0.0003999,7]